fUSD/lending_fUSD_20250930
["ID","MTS","AMOUNT","RATE_DAILY","PERIOD"]
[388545186,1759236781438,-803.3,0.00021095,2]
[388545187,1759236781448,-779.29,0.00021095,2]
[388545188,1759236781457,-724.75,0.00021095,2]
[388545189,1759236781467,-780.81,0.00021095,2]
[388545190,1759236781476,-788.0,0.00021095,2]
[388545191,1759236781487,-500.0,0.00021095,2]
[388545192,1759236781498,-1140.67,0.00021095,2]
[388545193,1759236781507,-2507.06,0.00021095,2]
[388545194,1759236781518,-500.0,0.00021095,2]
[388545195,1759236781527,-961.56,0.00021095,2]
[388545196,1759236781536,-500.0,0.00021095,2]
[388545197,1759236781546,-500.0,0.00021095,2]
[388545198,1759236781556,-861.63,0.00021095,2]
[388545199,1759236781565,-500.0,0.00021095,2]
[388545200,1759236781574,-2101.19,0.00021095,2]
[388545201,1759236781584,-500.0,0.00021095,2]
[388545202,1759236781594,-1215.25,0.00021095,2]
[388545203,1759236781604,-1164.62,0.00021095,2]
[388545204,1759236781620,-500.0,0.00021095,2]
[388545205,1759236781631,-2399.12,0.00021095,2]
[388545206,1759236781641,-1334.02,0.00021095,2]
[388545207,1759236781651,-1278.43,0.00021095,2]
[388545208,1759236781660,-840.44,0.00021095,2]
[388545209,1759236781670,-683.71,0.00021095,2]
[388545210,1759236781681,-504.4,0.00021095,2]
[388545211,1759236781690,-500.0,0.00021095,2]
[388545212,1759236781700,-1955.63,0.00021095,2]
[388545213,1759236781710,-1874.15,0.00021095,2]
[388545214,1759236781720,-1273.89,0.00021095,2]
[388545215,1759236781728,-500.0,0.00021095,2]
[388545216,1759236781738,-3314.41,0.00021095,2]
[388545217,1759236781748,-500.0,0.00021095,2]
[388545218,1759236781757,-650.69,0.00021095,2]
[388545219,1759236781767,-500.0,0.00021095,2]
[388545220,1759236781781,-500.0,0.00021095,2]
[388545221,1759236781791,-500.0,0.00021095,2]
[388545222,1759236781800,-500.0,0.00021095,2]
[388545223,1759236781810,-500.0,0.00021095,2]
[388545224,1759236781819,-374.78989918,0.00021095,2]
[388545225,1759236781829,-500.0,0.00021095,2]
[388545226,1759236781838,-686.0,0.00021095,2]
[388545227,1759236781848,-500.0,0.00021095,2]
[388545228,1759236781859,-500.0,0.00021095,2]
[388545229,1759236781872,-500.0,0.00021095,2]
[388545230,1759236781881,-2599.85,0.00021095,2]
[388545231,1759236781891,-500.0,0.00021095,2]
[388545232,1759236781902,-1308.84,0.00021095,2]
[388545233,1759236781912,-500.0,0.00021095,2]
[388545234,1759236781922,-500.0,0.00021095,2]
[388545235,1759236781932,-500.0,0.00021095,2]
[388545236,1759236781944,-500.0,0.00021095,2]
[388545237,1759236781954,-1204.83,0.00021095,2]
[388545238,1759236781963,-500.0,0.00021095,2]
[388545239,1759236781972,-721.9,0.00021095,2]
[388545240,1759236781982,-151.76552234,0.00021095,2]
[388545241,1759236781992,-500.0,0.00021095,2]
[388545242,1759236782002,-500.0,0.00021095,2]
[388545243,1759236782012,-785.77,0.00021095,2]
[388545244,1759236782023,-589.91,0.00021095,2]
[388545245,1759236782032,-500.0,0.00021095,2]
[388545246,1759236782042,-1563.28,0.00021095,2]
[388545247,1759236782052,-1019.02,0.00021095,2]
[388545248,1759236782062,-500.0,0.00021095,2]
[388545249,1759236782072,-531.72,0.00021095,2]
[388545250,1759236782082,-500.0,0.00021095,2]
[388545251,1759236782091,-500.0,0.00021095,2]
[388545252,1759236782101,-1956.66,0.00021095,2]
[388545253,1759236782111,-1127.24,0.00021095,2]
[388545254,1759236782121,-758.97,0.00021095,2]
[388545255,1759236782131,-348.97855785,0.00021095,2]
[388545256,1759236782141,-500.0,0.00021095,2]
[388545257,1759236782151,-500.0,0.00021095,2]
[388545258,1759236782161,-557.06,0.00021095,2]
[388545259,1759236782170,-1325.61,0.00021095,2]
[388545260,1759236782180,-500.0,0.00021095,2]
[388545261,1759236782190,-1775.13,0.00021095,2]
[388545262,1759236782199,-500.0,0.00021095,2]
[388545263,1759236782210,-540.37,0.00021095,2]
[388545264,1759236782219,-500.0,0.00021095,2]
[388545265,1759236782229,-859.64,0.00021095,2]
[388545266,1759236782239,-1174.76,0.00021095,2]
[388545267,1759236782248,-1125.81,0.00021095,2]
[388545268,1759236782258,-512.08,0.00021095,2]
[388545269,1759236782267,-500.0,0.00021095,2]
[388545270,1759236782280,-500.0,0.00021095,2]
[388545271,1759236782290,-1660.39,0.00021095,2]
[388545272,1759236782300,-500.0,0.00021095,2]
[388545273,1759236782310,-500.0,0.00021095,2]
[388545274,1759236782320,-583.2,0.00021095,2]
[388545275,1759236782330,-500.0,0.00021095,2]
[388545276,1759236782340,-2361.75,0.00021095,2]
[388545277,1759236782350,-2361.75,0.00021095,2]
[388545278,1759236782360,-1580.78,0.00021095,2]
[388545279,1759236782369,-524.38804097,0.00021095,2]
[388545280,1759236782379,-3278.0,0.00021095,2]
[388545281,1759236782389,-500.0,0.00021095,2]
[388545282,1759236782399,-2646.42,0.00021095,2]
[388545283,1759236782408,-766.13,0.00021095,2]
[388545284,1759236782418,-585.79,0.00021095,2]
[388545285,1759236782428,-610.64,0.00021095,2]
[388545286,1759236782438,-819.73,0.00021095,2]
[388545287,1759236782448,-500.0,0.00021095,2]
[388545288,1759236782459,-500.0,0.00021095,2]
[388545289,1759236782470,-1581.45,0.00021095,2]
[388545290,1759236782480,-716.83,0.00021095,2]
[388545291,1759236782490,-505.79,0.00021095,2]
[388545292,1759236782499,-749.24,0.00021095,2]
[388545293,1759236782509,-500.0,0.00021095,2]
[388545294,1759236782519,-784.29,0.00021095,2]
[388545295,1759236782532,-500.0,0.00021095,2]
[388545296,1759236782542,-511.55,0.00021095,2]
[388545297,1759236782552,-945.55,0.00021095,2]
[388545298,1759236782562,-500.0,0.00021095,2]
[388545299,1759236782572,-1193.9,0.00021095,2]
[388545300,1759236782583,-500.0,0.00021095,2]
[388545301,1759236782593,-500.0,0.00021095,2]
[388545302,1759236782603,-1243.67,0.00021095,2]
[388545303,1759236782614,-500.0,0.00021095,2]
[388545304,1759236782625,-500.0,0.00021095,2]
[388545305,1759236782636,-1156.41,0.00021095,2]
[388545306,1759236782648,-500.0,0.00021095,2]
[388545307,1759236782659,-500.0,0.00021095,2]
[388545308,1759236782670,-595.67,0.00021095,2]
[388545309,1759236782679,-500.0,0.00021095,2]
[388545310,1759236782690,-500.0,0.00021095,2]
[388545311,1759236782702,-500.0,0.00021095,2]
[388545312,1759236782712,-2989.39,0.00021095,2]
[388545313,1759236782723,-500.0,0.00021095,2]
[388545314,1759236782734,-588.07,0.00021095,2]
[388545315,1759236782745,-252.1205814,0.00021095,2]
[388545316,1759236782755,-680.87,0.00021095,2]
[388545317,1759236782765,-652.5,0.00021095,2]
[388545318,1759236782776,-500.0,0.00021095,2]
[388545320,1759236782786,-500.0,0.00021095,2]
[388545321,1759236782796,-1030.88,0.00021095,2]
[388545322,1759236782806,-500.0,0.00021095,2]
[388545323,1759236782816,-641.82,0.00021095,2]
[388545324,1759236782826,-500.0,0.00021095,2]
[388545325,1759236782836,-500.0,0.00021095,2]
[388545326,1759236782846,-1386.24,0.00021095,2]
[388545327,1759236782856,-839.19,0.00021095,2]
[388545328,1759236782870,-500.0,0.00021095,2]
[388545329,1759236782880,-297.81439846,0.00021095,2]
[388545330,1759236782890,-1351.91,0.00021095,2]
[388545331,1759236782900,-946.99,0.00021095,2]
[388545332,1759236782911,-795.93,0.00021095,2]
[388545333,1759236782920,-294.76104173,0.00021095,2]
[388545334,1759236782931,-870.82,0.00021095,2]
[388545335,1759236782940,-500.0,0.00021095,2]
[388545336,1759236782951,-500.0,0.00021095,2]
[388545337,1759236782961,-538.01,0.00021095,2]
[388545338,1759236782971,-852.65,0.00021095,2]
[388545339,1759236782982,-500.0,0.00021095,2]
[388545340,1759236782992,-517.57,0.00021095,2]
[388545341,1759236783002,-1588.62,0.00021095,2]
[388545342,1759236783012,-670.32,0.00021095,2]
[388545343,1759236783023,-290.92882754,0.00021095,2]
[388545344,1759236783034,-1470.44,0.00021095,2]
[388545345,1759236783044,-294.54355852,0.00021095,2]
[388545346,1759236783055,-500.0,0.00021095,2]
[388545347,1759236783065,-1409.18,0.00021095,2]
[388545348,1759236783076,-1632.14,0.00021095,2]
[388545349,1759236783086,-500.0,0.00021095,2]
[388545350,1759236783097,-3131.99,0.00021095,2]
[388545351,1759236783107,-890.61,0.00021095,2]
[388545352,1759236783117,-1628.15,0.00021095,2]
[388545353,1759236783127,-650.41,0.00021095,2]
[388545354,1759236783138,-2154.22,0.00021095,2]
[388545355,1759236783148,-500.0,0.00021095,2]
[388545356,1759236783158,-500.0,0.00021095,2]
[388545357,1759236783168,-912.82,0.00021095,2]
[388545358,1759236783179,-1825.23,0.00021095,2]
[388545359,1759236783189,-1825.23,0.00021095,2]
[388545360,1759236783200,-512.57,0.00021095,2]
[388545361,1759236783210,-885.4,0.00021095,2]
[388545362,1759236783221,-500.0,0.00021095,2]
[388545363,1759236783232,-1622.23,0.00021095,2]
[388545364,1759236783558,-500.0,0.00021095,2]
[388545365,1759236783568,-500.0,0.00021095,2]
[388545366,1759236783578,-500.0,0.00021095,2]
[388545367,1759236783588,-500.0,0.00021095,2]
[388545368,1759236783598,-1277.63,0.00021095,2]
[388545369,1759236783607,-695.83,0.00021095,2]
[388545370,1759236783617,-500.0,0.00021095,2]
[388545371,1759236783627,-620.42,0.00021095,2]
[388545372,1759236783637,-1030.07,0.00021095,2]
[388545373,1759236783647,-500.0,0.00021095,2]
[388545374,1759236783656,-500.0,0.00021095,2]
[388545375,1759236783667,-1095.55,0.00021095,2]
[388545376,1759236783677,-500.0,0.00021095,2]
[388545377,1759236783688,-685.27,0.00021095,2]
[388545378,1759236783698,-500.0,0.00021095,2]
[388545379,1759236783708,-2674.6,0.00021095,2]
[388545380,1759236783718,-1292.53,0.00021095,2]
[388545381,1759236783729,-3185.15,0.00021095,2]
[388545382,1759236783739,-500.0,0.00021095,2]
[388545383,1759236783750,-1956.66,0.00021095,2]
[388545384,1759236783760,-500.0,0.00021095,2]
[388545385,1759236783770,-1422.36,0.00021095,2]
[388545386,1759236783780,-500.0,0.00021095,2]
[388545387,1759236783789,-794.69,0.00021095,2]
[388545388,1759236783799,-534.36,0.00021095,2]
[388545389,1759236783809,-500.0,0.00021095,2]
[388545390,1759236783819,-500.0,0.00021095,2]
[388545391,1759236783828,-500.0,0.00021095,2]
[388545392,1759236783838,-500.0,0.00021095,2]
[388545393,1759236783847,-500.0,0.00021095,2]
[388545394,1759236783857,-500.0,0.00021095,2]
[388545395,1759236783871,-2498.24,0.00021095,2]
[388545396,1759236783880,-500.0,0.00021095,2]
[388545397,1759236783889,-1125.03,0.00021095,2]
[388545398,1759236783899,-796.57,0.00021095,2]
[388545399,1759236783910,-500.0,0.00021095,2]
[388545400,1759236783919,-2448.47,0.00021095,2]
[388545401,1759236783929,-500.0,0.00021095,2]
[388545402,1759236783941,-548.22,0.00021095,2]
[388545403,1759236783951,-572.4,0.00021095,2]
[388545404,1759236783960,-2221.26,0.00021095,2]
[388545405,1759236783969,-1388.86,0.00021095,2]
[388545406,1759236783979,-500.0,0.00021095,2]
[388545407,1759236783988,-500.0,0.00021095,2]
[388545408,1759236783998,-500.0,0.00021095,2]
[388545409,1759236784007,-1006.6,0.00021095,2]
[388545410,1759236784018,-2005.31,0.00021095,2]
[388545411,1759236784028,-500.0,0.00021095,2]
[388545412,1759236784037,-500.0,0.00021095,2]
[388545413,1759236784047,-437.63279929,0.00021095,2]
[388545414,1759236784057,-500.0,0.00021095,2]
[388545415,1759236784067,-500.0,0.00021095,2]
[388545416,1759236784076,-620.09,0.00021095,2]
[388545417,1759236784086,-624.7,0.00021095,2]
[388545418,1759236784095,-500.0,0.00021095,2]
[388545419,1759236784106,-500.0,0.00021095,2]
[388545420,1759236784116,-500.0,0.00021095,2]
[388545421,1759236784125,-1612.7,0.00021095,2]
[388545422,1759236784135,-500.0,0.00021095,2]
[388545423,1759236784144,-500.0,0.00021095,2]
[388545424,1759236784154,-500.0,0.00021095,2]
[388545425,1759236784163,-1573.58,0.00021095,2]
[388545426,1759236784173,-1104.98,0.00021095,2]
[388545427,1759236784183,-757.95,0.00021095,2]
[388545428,1759236784193,-1642.32,0.00021095,2]
[388545429,1759236784203,-598.52,0.00021095,2]
[388545430,1759236784213,-500.0,0.00021095,2]
[388545431,1759236784222,-1693.84,0.00021095,2]
[388545432,1759236784235,-719.09,0.00021095,2]
[388545433,1759236784244,-500.0,0.00021095,2]
[388545434,1759236784254,-500.0,0.00021095,2]
[388545435,1759236784264,-677.44,0.00021095,2]
[388545436,1759236784273,-441.09819083,0.00021095,2]
[388545437,1759236784283,-500.0,0.00021095,2]
[388545438,1759236784292,-2521.54,0.00021095,2]
[388545439,1759236784302,-3585.86,0.00021095,2]
[388545440,1759236784312,-500.0,0.00021095,2]
[388545441,1759236784321,-2800.4,0.00021095,2]
[388545442,1759236784331,-1137.08,0.00021095,2]
[388545443,1759236784341,-547.83,0.00021095,2]
[388545444,1759236784351,-747.88,0.00021095,2]
[388545445,1759236784360,-500.0,0.00021095,2]
[388545446,1759236784370,-5163.16,0.00021095,2]
[388545447,1759236784380,-628.52,0.00021095,2]
[388545448,1759236784390,-500.0,0.00021095,2]
[388545449,1759236784402,-500.0,0.00021095,2]
[388545450,1759236784413,-900.53,0.00021095,2]
[388545451,1759236784423,-1711.35,0.00021095,2]
[388545452,1759236784433,-500.0,0.00021095,2]
[388545453,1759236784443,-500.0,0.00021095,2]
[388545454,1759236784452,-627.88,0.00021095,2]
[388545455,1759236784462,-512.86,0.00021095,2]
[388545456,1759236784472,-3534.18,0.00021095,2]
[388545457,1759236784482,-500.0,0.00021095,2]
[388545458,1759236784491,-365.43807115,0.00021095,2]
[388545459,1759236784500,-562.54,0.00021095,2]
[388545460,1759236784510,-789.35,0.00021095,2]
[388545461,1759236784520,-560.58,0.00021095,2]
[388545462,1759236784529,-500.0,0.00021095,2]
[388545463,1759236784539,-500.0,0.00021095,2]
[388545464,1759236784550,-500.0,0.00021095,2]
[388545465,1759236784560,-2386.02,0.00021095,2]
[388545466,1759236784571,-500.0,0.00021095,2]
[388545467,1759236784580,-500.0,0.00021095,2]
[388545468,1759236784592,-1076.9,0.00021095,2]
[388545469,1759236784602,-3657.67,0.00021095,2]
[388545470,1759236784612,-1041.83,0.00021095,2]
[388545471,1759236784622,-3224.35,0.00021095,2]
[388545472,1759236784631,-500.0,0.00021095,2]
[388545473,1759236784641,-773.33,0.00021095,2]
[388545474,1759236784650,-2187.82,0.00021095,2]
[388545475,1759236784661,-1760.32,0.00021095,2]
[388545476,1759236784670,-1240.5,0.00021095,2]
[388545477,1759236784680,-2690.42,0.00021095,2]
[388545478,1759236784689,-4935.23,0.00021095,2]
[388545479,1759236784699,-1587.13,0.00021095,2]
[388545480,1759236784708,-500.0,0.00021095,2]
[388545481,1759236784718,-640.07,0.00021095,2]
[388545482,1759236784727,-500.0,0.00021095,2]
[388545483,1759236784736,-3353.46,0.00021095,2]
[388545484,1759236784746,-2314.25,0.00021095,2]
[388545485,1759236784755,-1533.53,0.00021095,2]
[388545486,1759236784765,-500.0,0.00021095,2]
[388545487,1759236784775,-782.37,0.00021095,2]
[388545488,1759236784784,-6485.87,0.00021095,2]
[388545489,1759236784794,-5250.86,0.00021095,2]
[388545490,1759236784804,-771.28,0.00021095,2]
[388545491,1759236784813,-500.0,0.00021095,2]
[388545492,1759236784823,-3509.91,0.00021095,2]
[388545493,1759236784832,-500.0,0.00021095,2]
[388545494,1759236784841,-500.0,0.00021095,2]
[388545495,1759236784850,-1098.61,0.00021095,2]
[388545496,1759236784861,-2880.85,0.00021095,2]
[388545497,1759236784872,-500.0,0.00021095,2]
[388545498,1759236784882,-524.9,0.00021095,2]
[388545499,1759236784892,-500.0,0.00021095,2]
[388545500,1759236784901,-2100.64,0.00021095,2]
[388545501,1759236784911,-500.0,0.00021095,2]
[388545502,1759236784921,-1955.1,0.00021095,2]
[388545503,1759236784930,-1615.18,0.00021095,2]
[388545504,1759236784939,-571.65,0.00021095,2]
[388545505,1759236784948,-663.18,0.00021095,2]
[388545506,1759236784957,-500.0,0.00021095,2]
[388545507,1759236784966,-1218.74,0.00021095,2]
[388545508,1759236784977,-2233.57,0.00021095,2]
[388545509,1759236784986,-1109.61,0.00021095,2]
[388545510,1759236784995,-500.0,0.00021095,2]
[388545511,1759236785005,-500.0,0.00021095,2]
[388545512,1759236785015,-705.44,0.00021095,2]
[388545513,1759236785025,-500.0,0.00021095,2]
[388545514,1759236785035,-551.13,0.00021095,2]
[388545515,1759236785044,-500.0,0.00021095,2]
[388545516,1759236785054,-5689.13,0.00021095,2]
[388545517,1759236785063,-4642.17,0.00021095,2]
[388545518,1759236785072,-1432.91,0.00021095,2]
[388545519,1759236785082,-977.34,0.00021095,2]
[388545520,1759236785091,-500.0,0.00021095,2]
[388545521,1759236785101,-500.0,0.00021095,2]
[388545522,1759236785111,-1417.17,0.00021095,2]
[388545523,1759236785120,-1566.99,0.00021095,2]
[388545524,1759236785129,-2166.0,0.00021095,2]
[388545525,1759236785138,-3509.0,0.00021095,2]
[388545526,1759236785147,-500.0,0.00021095,2]
[388545527,1759236785156,-500.0,0.00021095,2]
[388545528,1759236785166,-500.0,0.00021095,2]
[388545529,1759236785175,-596.77,0.00021095,2]
[388545530,1759236785185,-500.0,0.00021095,2]
[388545531,1759236785194,-642.61,0.00021095,2]
[388545532,1759236785203,-2949.36,0.00021095,2]
[388545533,1759236785213,-2718.85,0.00021095,2]
[388545534,1759236785223,-500.0,0.00021095,2]
[388545535,1759236785233,-795.8,0.00021095,2]
[388545536,1759236785243,-3687.17,0.00021095,2]
[388545537,1759236785253,-1201.28,0.00021095,2]
[388545538,1759236785263,-684.53,0.00021095,2]
[388545539,1759236785274,-4592.8,0.00021095,2]
[388545540,1759236785283,-500.0,0.00021095,2]
[388545541,1759236785293,-1286.78,0.00021095,2]
[388545542,1759236785303,-4326.28,0.00021095,2]
[388545543,1759236785312,-500.0,0.00021095,2]
[388545544,1759236785321,-500.0,0.00021095,2]
[388545545,1759236785331,-500.0,0.00021095,2]
[388545546,1759236785340,-500.0,0.00021095,2]
[388545547,1759236785349,-2180.29,0.00021095,2]
[388545548,1759236785358,-500.0,0.00021095,2]
[388545549,1759236785368,-500.0,0.00021095,2]
[388545550,1759236785377,-500.0,0.00021095,2]
[388545551,1759236785387,-532.98,0.00021095,2]
[388545552,1759236785395,-4847.84,0.00021095,2]
[388545553,1759236785407,-608.6,0.00021095,2]
[388545554,1759236785415,-500.0,0.00021095,2]
[388545555,1759236785425,-4847.82,0.00021095,2]
[388545556,1759236785435,-500.0,0.00021095,2]
[388545557,1759236785444,-500.0,0.00021095,2]
[388545558,1759236785454,-3800.58,0.00021095,2]
[388545559,1759236785463,-500.0,0.00021095,2]
[388545560,1759236785473,-575.5,0.00021095,2]
[388545561,1759236785482,-500.0,0.00021095,2]
[388545562,1759236785491,-701.03,0.00021095,2]
[388545563,1759236785501,-1789.31,0.00021095,2]
[388545564,1759236785511,-2662.14,0.00021095,2]
[388545565,1759236785521,-2533.68,0.00021095,2]
[388545566,1759236785531,-500.0,0.00021095,2]
[388545567,1759236785541,-500.0,0.00021095,2]
[388545568,1759236785551,-2806.65,0.00021095,2]
[388545569,1759236785561,-325.92,0.00021095,2]
[388545570,1759236785570,-8671.548947,0.00021095,2]
[388545571,1759236785580,-500.0,0.00021095,2]
[388545572,1759236785589,-500.0,0.00021095,2]
[388545573,1759236785599,-3307.6,0.00021095,2]
[388545574,1759236785608,-1877.95,0.00021095,2]
[388545575,1759236785618,-4344.73,0.00021095,2]
[388545576,1759236785627,-1232.05,0.00021095,2]
[388545577,1759236785637,-385.303121,0.00021095,2]
[388545578,1759236785647,-316.486851,0.00021095,2]
[388545579,1759236785656,-500.0,0.00021095,2]
[388545580,1759236785667,-1688.46,0.00021095,2]
[388545581,1759236785676,-500.0,0.00021095,2]
[388545582,1759236785686,-3390.857945,0.00021095,2]
[388545583,1759236785695,-374.715851,0.00021095,2]
[388545584,1759236785704,-898.43,0.00021095,2]
[388545585,1759236785713,-7423.351587,0.00021095,2]
[388545586,1759236785723,-5020.85,0.00021095,2]
[388545587,1759236785733,-773.64,0.00021095,2]
[388545588,1759236785742,-4173.34,0.00021095,2]
[388545589,1759236785751,-2033.24,0.00021095,2]
[388545590,1759236785761,-571.08580239,0.00021095,2]
[388545591,1759236785770,-500.0,0.00021095,2]
[388545592,1759236785779,-1401.38,0.00021095,2]
[388545593,1759236785789,-2013.75,0.00021095,2]
[388545594,1759236785799,-500.0,0.00021095,2]
[388545595,1759236785809,-500.0,0.00021095,2]
[388545596,1759236785818,-3105.83,0.00021095,2]
[388545597,1759236785827,-3439.22,0.00021095,2]
[388545598,1759236785836,-2207.05,0.00021095,2]
[388545599,1759236785845,-3888.52,0.00021095,2]
[388545600,1759236785855,-3031.79,0.00021095,2]
[388545601,1759236785880,-500.0,0.00021095,2]
[388545602,1759236785898,-500.0,0.00021095,2]
[388545603,1759236785918,-500.0,0.00021095,2]
[388545604,1759236785940,-2473.07,0.00021095,2]
[388545605,1759236785956,-500.0,0.00021095,2]
[388545606,1759236785976,-659.75,0.00021095,2]
[388545607,1759236785996,-3168.12,0.00021095,2]
[388545608,1759236786018,-500.0,0.00021095,2]
[388545609,1759236786037,-2996.33,0.00021095,2]
[388545610,1759236786056,-500.0,0.00021095,2]
[388545611,1759236786072,-2000.64,0.00021095,2]
[388545612,1759236786085,-500.0,0.00021095,2]
[388545613,1759236786105,-500.0,0.00021095,2]
[388545614,1759236786118,-1390.14,0.00021095,2]
[388545615,1759236786137,-3873.86,0.00021095,2]
[388545616,1759236786150,-1903.48,0.00021095,2]
[388545617,1759236786167,-3324.17,0.00021095,2]
[388545618,1759236786181,-500.0,0.00021095,2]
[388545619,1759236786198,-500.0,0.00021095,2]
[388545620,1759236786214,-4579.72,0.00021095,2]
[388545621,1759236786229,-3419.82,0.00021095,2]
[388545622,1759236786244,-3713.1,0.00021095,2]
[388545623,1759236786260,-500.0,0.00021095,2]
[388545624,1759236786274,-772.84,0.00021095,2]
[388545625,1759236786290,-435.4983517,0.00021095,2]
[388545626,1759236786304,-2506.86,0.00021095,2]
[388545627,1759236786320,-2339.41,0.00021095,2]
[388545628,1759236786336,-560.42,0.00021095,2]
[388545629,1759236786351,-2792.33,0.00021095,2]
[388545630,1759236786367,-1899.13,0.00021095,2]
[388545631,1759236786382,-4139.96,0.00021095,2]
[388545632,1759236786397,-604.76,0.00021095,2]
[388545633,1759236786413,-872.23,0.00021095,2]
[388545634,1759236786429,-1756.01,0.00021095,2]
[388545635,1759236786444,-1299.41,0.00021095,2]
[388545636,1759236786460,-1184.74,0.00021095,2]
[388545637,1759236786476,-500.0,0.00021095,2]
[388545638,1759236786491,-1843.86,0.00021095,2]
[388545639,1759236786505,-500.0,0.00021095,2]
[388545640,1759236786521,-228.08584011,0.00021095,2]
[388545641,1759236786543,-500.0,0.00021095,2]
[388545642,1759236786558,-5305.3,0.00021095,2]
[388545643,1759236786574,-881.11,0.00021095,2]
[388545644,1759236786589,-6734.31,0.00021095,2]
[388545645,1759236786604,-500.0,0.00021095,2]
[388545646,1759236786619,-740.42,0.00021095,2]
[388545647,1759236786634,-517.4,0.00021095,2]
[388545648,1759236786649,-500.0,0.00021095,2]
[388545649,1759236786664,-3043.79,0.00021095,2]
[388545650,1759236786677,-500.0,0.00021095,2]
[388545651,1759236786692,-500.0,0.00021095,2]
[388545652,1759236786707,-500.0,0.00021095,2]
[388545653,1759236786721,-500.0,0.00021095,2]
[388545654,1759236786735,-500.0,0.00021095,2]
[388545655,1759236786751,-4764.68,0.00021095,2]
[388545656,1759236786766,-296.84628044,0.00021095,2]
[388545657,1759236786781,-883.02,0.00021095,2]
[388545658,1759236786796,-3246.07,0.00021095,2]
[388545659,1759236786811,-1700.17,0.00021095,2]
[388545660,1759236786826,-324.6532191,0.00021095,2]
[388545661,1759236786841,-3132.31,0.00021095,2]
[388545662,1759236786856,-3466.53,0.00021095,2]
[388545663,1759236786874,-500.0,0.00021095,2]
[388545664,1759236786889,-938.56,0.00021095,2]
[388545665,1759236786903,-3057.69,0.00021095,2]
[388545666,1759236786918,-1918.23,0.00021095,2]
[388545667,1759236786934,-1064.22,0.00021095,2]
[388545668,1759236786948,-500.0,0.00021095,2]
[388545669,1759236786964,-500.0,0.00021095,2]
[388545670,1759236786978,-500.0,0.00021095,2]
[388545671,1759236786994,-500.0,0.00021095,2]
[388545672,1759236787008,-500.0,0.00021095,2]
[388545673,1759236787023,-1302.1,0.00021095,2]
[388545674,1759236787038,-4492.44,0.00021095,2]
[388545675,1759236787053,-1087.57,0.00021095,2]
[388545676,1759236787067,-3601.0,0.00021095,2]
[388545677,1759236787082,-732.56,0.00021095,2]
[388545678,1759236787097,-500.0,0.00021095,2]
[388545679,1759236787111,-500.0,0.00021095,2]
[388545680,1759236787126,-500.0,0.00021095,2]
[388545681,1759236787141,-4290.21,0.00021095,2]
[388545682,1759236787155,-724.36,0.00021095,2]
[388545683,1759236787171,-4390.54,0.00021095,2]
[388545684,1759236787185,-500.0,0.00021095,2]
[388545685,1759236787199,-828.65,0.00021095,2]
[388545686,1759236787214,-3358.18,0.00021095,2]